Cogmind - Beta 13 @@@ ROGUE MODE // 2024.07.30 @ 22:18:26 Player: RadioactivePepsi Result: Destroyed by D-53 Grenadier with Mini Grenade Launcher Performance ------------- Evolutions (0) 0 Regions Visited (2) 400 Robots Destroyed (9) 45 Value Destroyed (137) 137 Prototype IDs (0) 0 Alien Tech Used (0) 0 Bonus (0) 0 TOTAL SCORE: 582 Bonus ------- None Cogmind --------- Core Integrity 0/250 Matter 130/300 Energy 230/250 System Corruption 1% Temperature Cool (0) Movement Rolling (140) Ox4 Location -10/Mines Parts ------- > --- POWER (1) -------- Ion Engine > --- PROPULSION (2) --- Wheel Wheel > --- UTILITY (2) ------ Huge Storage Unit Light Armor Plating > --- WEAPON (2) ------- Heavy Assault Rifle Heavy Assault Rifle > --- INVENTORY (25) --- Improved Hover Unit Small Matter Pod (50) Sensor Array Terrain Scanner EM Pulse Gun Small Laser Mining Laser Peak State ------------ > --- POWER ------------ Light Ion Engine > --- PROPULSION ------- Improved Hover Unit Improved Hover Unit > --- UTILITY ---------- Heat Sink Improved Targeting Computer > --- WEAPON ----------- Heavy Assault Rifle Heavy Assault Rifle > --- INVENTORY -------- Light Ion Engine Wheel Wheel Small Laser [Rating: 12] Favorites ----------- Power Ion Engine Engine Ion Engine Propulsion Wheel Wheel Wheel Hover Unit Improved Hover Unit Utility Sensor Array Device Sensor Array Storage Huge Storage Unit Processor Improved Targeting Computer Protection Light Armor Plating Weapon Heavy Assault Rifle Energy Gun Small Laser Ballistic Gun Heavy Assault Rifle Ballistic Cannon Light Cannon Launcher Grenade Launcher Build | -11 -10 -10 ------- Run | Yrd Mat Min Slots Evolved . | . . . Power . | . . . Propulsion . | . . . Utility . | . . . Weapon . | . . . Parts Attached 26 | 6 12 8 Power 3 | 1 2 . Engine 3 | 1 2 . Core . | . . . Reactor . | . . . Propulsion 6 | 2 2 2 Treads . | . . . Leg . | . . . Wheel 4 | 2 . 2 Hover 2 | . 2 . Flight . | . . . Utility 6 | 1 3 2 Device 2 | 1 1 . Storage 2 | . 1 1 Processor 1 | . 1 . Hackware . | . . . Protection 1 | . . 1 Artifact . | . . . Weapon 11 | 2 5 4 Energy Gun 2 | 1 1 . Energy Cannon . | . . . Ballistic Gun 7 | 1 4 2 Ballistic Cannon 1 | . . 1 Launcher 1 | . . 1 Special Weapon . | . . . Impact Weapon . | . . . Slashing Weapon . | . . . Piercing Weapon . | . . . Special Melee Weapon . | . . . Unidentified Prototypes . | . . . Parts Lost 2 | . . 2 Power . | . . . Propulsion . | . . . Utility . | . . . Weapon 2 | . . 2 Highest Loss Streak 2 | . . 2 To Critical Strikes . | . . . Average Slot Usage (%) 92 | . 91 92 Engine 12 | . 10 14 Wheel 12 | . 2 20 Hover 13 | . 24 3 Device 15 | . 16 15 Storage 9 | . 5 12 Processor 2 | . 5 . Energy Gun 1 | . 2 . Ballistic Gun 22 | . 22 21 Ballistic Cannon 1 | . . 1 Launcher 1 | . . 1 Naked Turns . | . . . Heaviest Build 92 | 5 13 92 Greatest Support 20 | 20 20 20 Greatest Overweight (x) 13 | . 1 13 Average Overweight (x) 1 | . . 3 Largest Inventory Capacity 25 | 5 5 25 Average Capacity 12 | 5 5 22 Most Carried 9 | 5 5 9 Average Carried 5 | 4 4 6 Final Capacity 25 | 5 5 25 Final Carried 7 | 5 5 7 Class Distribution -------------------- 100% | Mutant Dominant Class ---------------- Mutant | -10/Materials Mutant | -10/Mines Resources | -11 -10 -10 ----------- Run | Yrd Mat Min Matter Collected 548 | 260 205 83 Remotely . | . . . Salvage Created 360 | 111 202 47 Parts 22 | 11 11 . Haulers Intercepted . | . . . Recyclers Shooed 1 | . 1 . Parts Field Recycled . | . . . Retrieved Matter . | . . . Parts Self-Destructed . | . . . Prevented . | . . . Kills | -11 -10 -10 ------- Run | Yrd Mat Min Combat Hostiles Destroyed 18 | 1 1 16 Guns 2 | 1 1 . Cannons 2 | . . 2 AOE 14 | . . 14 Classes Destroyed 7 | 3 3 1 Worker 1 | 1 . . Tunneler 2 | 2 . . Recycler 1 | . 1 . Operator 1 | . 1 . Watcher 2 | . 2 . Grunt 2 | 1 1 . Assembled 16 | . . 16 Best Kill Streak 16 | 3 3 16 Combat Bots Only 16 | 1 1 16 Max Kills in Single Turn 4 | 1 1 4 Gunslinging . | . . . Exploded 4 | . . 4 Melee . | . . . Uniques/NPCs Destroyed . | . . . Combat | -11 -10 -10 -------- Run | Yrd Mat Min Hostile Shots Fired 46 | 3 4 39 Missed 17 | 2 2 13 Damage Taken 535 | 10 31 494 Core 259 | . . 259 Absorbed by Shields . | . . . Core Remaining (%) 100 | 100 . . Volleys Fired 41 | 13 15 13 Largest 2 | 1 2 2 Hottest 65 | 40 63 65 Shots Fired 66 | 13 30 23 Gun 47 | 13 30 4 Cannon 11 | . . 11 Launcher 8 | . . 8 Special . | . . . Kinetic 44 | . 29 15 Thermal 14 | 13 1 . Explosive 8 | . . 8 Electromagnetic . | . . . Robot Hit Streak 4 | 3 4 3 Robot Miss Streak 6 | 4 6 2 Penetration Max . | . . . Secondary Targets . | . . . Shots Hit Robots 27 | 6 11 10 Core Hits 45 | 5 7 33 Critical Kills . | . . . Critical Parts Destroyed . | . . . Critical Strikes . | . . . Melee Attacks . | . . . Impact . | . . . Slashing . | . . . Piercing . | . . . Sneak Attacks . | . . . Combat Hostiles . | . . . Follow-up Attacks . | . . . Damage Inflicted 1271 | 64 193 1014 Guns 267 | 64 172 31 Cannons 109 | . . 109 Explosions 874 | . . 874 Melee . | . . . Ramming 21 | . 21 . Kinetic 301 | . 161 140 Thermal 75 | 64 11 . Explosive 874 | . . 874 Electromagnetic . | . . . Impact . | . . . Slashing . | . . . Piercing . | . . . Highest Corruption 1 | . 1 1 Average Corruption 1 | . 1 1 Corruption Purged . | . . . Corruption Blocked . | . . . Effects 2 | . 1 1 Message Errors 1 | . . 1 Heat Flow Errors 1 | . 1 . Overload Shots . | . . . Overflow Damage 37 | . . 37 Projectiles 11 | . . 11 Explosions 26 | . . 26 Melee . | . . . Knockbacks 1 | . . 1 Impact . | . . . Kinetic 1 | . . 1 Secondary . | . . . Self-Inflicted Damage 42 | . 10 32 Shots 1 | . . 1 Rammed 2 | . 2 . Targets Rammed 2 | . 2 . Kicked . | . . . Crushed . | . . . Highest Temperature 137 | 6 137 32 Average Temperature 25 | 6 79 15 Received Heat Transfer 58 | 6 12 40 Siege Activations . | . . . Robots Corrupted . | . . . Combat Hostiles . | . . . Parts Fried . | . . . Impact Corruptions . | . . . Robots Melted . | . . . Combat Hostiles . | . . . Parts Melted . | . . . Heat Transferred 175 | 150 25 . Parts Sabotaged . | . . . Parts Stolen . | . . . Parts Stripped . | . . . Power Chain Reactions . | . . . Alert | -11 -10 -10 ------- Run | Yrd Mat Min Peak Influence 88 | 35 88 71 Initial 34 | . 22 34 Average 34 | 12 38 41 Maximum Alert Level . | . . . Low Security (%) 100 | 100 100 100 Level 1 . | . . . Level 2 . | . . . Level 3 . | . . . Level 4 . | . . . Level 5 . | . . . High Security . | . . . Max Security . | . . . Squads Dispatched 1 | . 1 . Investigation . | . . . Extermination . | . . . Reinforcement 1 | . 1 . Assault . | . . . Garrison . | . . . Intercept . | . . . Searches Triggered . | . . . Construction Impeded . | . . . Haulers Reinforced . | . . . Active Scanning Responses . | . . . Cargo Convoy Interrupts . | . . . Stealth | -11 -10 -10 --------- Run | Yrd Mat Min Distress Signals 1 | . 1 . Communications Jammed . | . . . Distress Signals . | . . . Times Spotted 26 | 1 4 21 Peak Tracking Total 18 | 1 3 18 Tactical Retreats . | . . . Traps | -11 -10 -10 ------- Run | Yrd Mat Min Traps Triggered 1 | . 1 . Indirectly . | . . . Trap Hack Attempts . | . . . Triggered . | . . . Disarmed . | . . . Reprogrammed . | . . . Reused . | . . . Traps Extracted . | . . . Installed . | . . . Triggered . | . . . Machines | -11 -10 -10 ---------- Run | Yrd Mat Min Machines Disabled . | . . . Max in Single Turn . | . . . Machines Repaired . | . . . Machines Dismantled . | . . . Machines Sabotaged . | . . . Overloaded Fab Kills . | . . . Hacking | -11 -10 -10 --------- Run | Yrd Mat Min Machines Accessed 1 | . 1 . Terminals . | . . . Fabricators . | . . . Repair Stations 1 | . 1 . Recycling Units . | . . . Scanalyzers . | . . . Garrison Access . | . . . Total Hacks 3 | . 3 . Successful 2 | . 2 . Failed 1 | . 1 . Catastrophic . | . . . Database Lockouts . | . . . Manual . | . . . Terminals . | . . . Fabricators . | . . . Repair Stations 3 | . 3 . Recycling Units . | . . . Scanalyzers . | . . . Garrison Access . | . . . Terminal Hacks . | . . . Fabricator Hacks . | . . . Repair Station Hacks 2 | . 2 . Scan Component 1 | . 1 . Repair 1 | . 1 . Recycling Unit Hacks . | . . . Scanalyzer . | . . . Garrison Access Hacks . | . . . Unauthorized Hacks . | . . . Terminals . | . . . Fabricators . | . . . Repair Stations . | . . . Recycling Units . | . . . Scanalyzers . | . . . Garrison Access . | . . . Data Cores Recovered . | . . . Used . | . . . Hacking Detections 1 | . 1 . Full Trace Events 1 | . 1 . Feedback Events . | . . . Feedback Blocked . | . . . Robot Schematics Acquired . | . . . Robots Built . | . . . Authchips . | . . . Time . | . . . Total Robot Build Rating . | . . . Part Schematics Acquired . | . . . Parts Built . | . . . Authchips . | . . . Time . | . . . Total Part Build Rating . | . . . Parts Repaired . | . . . Time 32 | . 32 . Parts Recycled . | . . . Recycled Matter . | . . . Retrieved Matter . | . . . Retrieved Components . | . . . Parts Scanalyzed . | . . . Part Schematics Acquired . | . . . Parts Damaged . | . . . Bothacking | -11 -10 -10 ------------ Run | Yrd Mat Min Used RIF Installer . | . . . Robots Hacked . | . . . Non-combat . | . . . Combat . | . . . Robot Hacks Applied . | . . . Relay Couplers Released . | . . . Fabnet Peak Effective % . | . . . Robots Rewired . | . . . Allies Hacked . | . . . Hacks Repelled . | . . . Allies | -11 -10 -10 -------- Run | Yrd Mat Min Total Allies . | . . . Largest Group . | . . . Highest-Rated Group . | . . . Highest-Rated Ally . | . . . Total Orders . | . . . Ally Attacks . | . . . Total Damage . | . . . Kills . | . . . Allies Corrupted . | . . . Allies Melted . | . . . Intel | -11 -10 -10 ------- Run | Yrd Mat Min Robot Analysis Total . | . . . Derelict Logs Recovered . | . . . Drone Launches . | . . . Drone Recoveries . | . . . Exploration | -11 -10 -10 ------------- Run | Yrd Mat Min Turns Passed 548 | 123 186 239 Spaces Moved 408 | 110 181 117 Core 21 | 21 . . Treads . | . . . Legs . | . . . Wheels 184 | 89 8 87 Hover 203 | . 173 30 Flight . | . . . Fastest Speed 50 | 50 56 120 Average Speed 93 | 74 61 159 Slowest Speed 840 | 80 120 840 Overloaded Moves . | . . . Propulsion Burnouts . | . . . Robots Hopped . | . . . Cave-ins Triggered . | . . . Exploration Rate (%) 17 | 7 28 17 Regions Visited 2 Branch Regions 1 Pre-discovered Areas . | . . . Known Exits Taken . | . . . Unknown Exits Taken 2 | 1 1 . Scrap Searched 1 | . . 1 Spaces Dug . | . . . Terrain Destroyed 55 | . . 55 Melee . | . . . Projectile . | . . . AOE 55 | . . 55 Terrain Rammed . | . . . Walls Destroyed . | . . . Machines Disabled . | . . . Actions | -11 -10 -10 --------- Run | Yrd Mat Min Total 506 | 137 225 144 Wait . | . . . Move 406 | 109 180 117 Hop . | . . . Pick Up 22 | 8 9 5 Fast Attach 6 | 2 3 1 Attach 12 | 4 5 3 Detach 1 | 1 . . Swap 8 | . 4 4 Drop 8 | . 7 1 Fire 41 | 13 15 13 Melee . | . . . Ram 2 | . 2 . Kick . | . . . Crush . | . . . Escape Stasis . | . . . Rewire . | . . . Trap . | . . . Miscellaneous . | . . . Route ------- -11/Scrapyard -10/Materials (discovered 2 exits: [*Min x2]) -10/Mines History --------- Turn | Location | Event 2 | -11/Scrapyard | Met Revision 17 71 | -11/Scrapyard | Discovered new exit (range 8) 124 | -11/Scrapyard | Entered Materials 124 | -10/Materials | Discovered new exit (range 10) 290 | -10/Materials | Discovered new exit (range 6) 308 | -10/Materials | Build established: Mutant 310 | -10/Materials | Entered Mines 364 | -10/Mines | Met a Derelict bent on vengeance 486 | -10/Mines | Assembled infested the area 521 | -10/Mines | Core integrity fell below 50% 547 | -10/Mines | Core integrity fell below 20% 548 | -10/Mines | Destroyed 16 combat bots 549 | -10/Mines | Destroyed by D-53 Grenadier with Mini Grenade Launcher Last Messages --------------- 00511_ as-04335 destroyed. 00511_ as-32502 destroyed. 00513_ as-67423 destroyed. 00513_ as-91167 destroyed. 00514_ as-52110 destroyed. 00514_ Destroyed Asb. Heavy Rifle. 00514_ as-07888 destroyed. 00517_ as-73765 destroyed. 00517_ as-81422 destroyed. 00517_ as-16306 destroyed. 00517_ as-22060 destroyed. [Achievement: Exterminator] 00520_ The unstable cave ceiling collapses. 00520_ Grenade Launcher destroyed. 00525_ as-62044 knocked back. 00527_ as-62044 destroyed. 00527_ Lgt. Cannon destroyed. 00527_ as-26947 destroyed. 00529_ The unstable cave ceiling collapses. 00546_ T-07 Excavator destroyed. Map ----- +----------------------------------------------------+ | | | | | | | | | | | ?????????????????????????????????????????????????? | | ?????????????????????????????????????####????????? | | ???????????????????????????# ####### ##????#### | | ??????????????????????????# ##??## # | | ??????????????????????????# #### | | ?????????????????????????? $ | | ?????????????????????????????????# | | ?????????????????????????????????### # ### | | ???????????????????????????????????## ## #?## | | ????????????????????????????????????# ## #??# | | ???????????????????????????????????## ## #?## | | ??????????????????????????????????## ## ### | | ???????????????????????????######## | | ???????????????????????????# ####### | | ???????????????????????????# #?????## | | ???????????????###?#??####?# ### #??????## | | ???????????????# # ## ## ## ##???????# | | ????????? # # ###????????? | | ????????? =%=### ##??????????? | | ????????????# # % #?## ##??????????? | | ????????? d @ ##??# #??????????? | | ????????????# ##??## #??????????? | | ????????????## #???# #??????????? | | ?????????????## #####???## #??????????? | | ??????????????# # ?????????### #??????????? | | ????????????? $ ###???????????# #??????????? | | ???????????? ####??????????????# #??????????? | | ????????????# ???????????????????? ??????????? | | ????????????# ?????????????????????####?????????? | | ????????????? ???????????????????????????????????? | | ?????????????????????????????????????????????????? | | ?????????????????????????????????????????????????? | | ?????????????????????????????????????????????????? | | ?????????????????????????????????????????????????? | | ?????????????????????????????????????????????????? | | ?????????????????????????????????????????????????? | | ?????????????????????????????????????????????????? | | ?????????????????????????????????????????????????? | | ?????????????????????????????????????????????????? | | ?????????????????????????????????????????????????? | | ?????????????????????????????????????????????????? | | ?????????????????????????????????????????????????? | | ?????????????????????????????????????????????????? | | ?????????????????????????????????????????????????? | | ?????????????????????????????????????????????????? | +----------------------------------------------------+ Best States ------------- Heat Dissipation 35 Energy Generation 10 Energy Capacity 250 Matter Stores 300 Matter Capacity 350 Sight Range 16 Robot Scan Range 14 Terrain Scan Density 10 Evasion (%) 53 Targeting Accuracy 6 Item Schematics ----------------- None Robot Schematics ------------------ None Fabricated ------------ Nothing Alien Tech Used ----------------- None Achievements -------------- Exterminator Challenges ------------ None Game ------ Seed AngularFlightStorm Manual? 0 Play Time 00:12:52 Cumulative 0.7 hours Start 2024.07.30 @ 22:08:15 End 2024.07.30 @ 22:18:26 Sessions 1 Manual Loads 0 Difficulty Rogue Special Mode None Game No. 2 Rogue 2 Adventurer 0 Explorer 0 Win Type - Total 0 Types 0/0/0/0/0/0/0/0/0 Lore% 0 Gallery% 3 Achievement% 3 Wizard Run 0 Options --------- Layout 0 ASCII 0 Keyboard 0 Movement Mouse Keybinds 0 Fullscreen 2 Font 24/Smallcaps Map View 76x50 Zoom Use 0% Tactical HUD 1 Map Filters NONE Filters NONE Steam 1 RUN: 06331062-5f81-47ca-8f54-02e3a04ac9a2